[Event "Titled Tuesday Blitz November 14 Late 2023"]
[White "Flameboard08"]
[Black "Jamal-Jamal-Jamal"]
[WhiteElo "2629"]
[BlackElo "2455"]
[Result "0-1"]
[Round "9"]
[TimeControl "180+1"]
[Date "2023.11.14"]
[WhiteClock "0:00:03"]
[BlackClock "0:00:04"]
[Board "35"]

1. f4 {[%clk 0:03:00]}  d5 {[%clk 0:02:58]} 2. Nf3 {[%clk 0:03:00]}  c5 {[%clk 0:02:58]} 3. d3 {[%clk 0:03:00]}  Nc6 {[%clk 0:02:58]} 4. g3 {[%clk 0:02:58]}  g6 {[%clk 0:02:58]} 5. Bg2 {[%clk 0:02:58]}  Bg7 {[%clk 0:02:59]} 6. O-O {[%clk 0:02:59]}  Nh6 {[%clk 0:02:59]} 7. Nbd2 {[%clk 0:02:59]}  O-O {[%clk 0:02:59]} 8. e4 {[%clk 0:02:58]}  dxe4 {[%clk 0:02:58]} 9. dxe4 {[%clk 0:02:59]}  Nd4 {[%clk 0:02:54]} 10. c3 {[%clk 0:02:58]}  Nxf3+ {[%clk 0:02:54]} 11. Nxf3 {[%clk 0:02:56]}  Qc7 {[%clk 0:02:51]} 12. h3 {[%clk 0:02:52]}  Rd8 {[%clk 0:02:46]} 13. Qe2 {[%clk 0:02:51]}  b6 {[%clk 0:02:37]} 14. Qf2 {[%clk 0:02:43]}  f6 {[%clk 0:02:35]} 15. g4 {[%clk 0:02:33]}  Nf7 {[%clk 0:02:33]} 16. Re1 {[%clk 0:02:15]}  Bb7 {[%clk 0:02:23]} 17. f5 {[%clk 0:02:04]}  g5 {[%clk 0:02:22]} 18. e5 {[%clk 0:02:01]}  Nxe5 {[%clk 0:02:17]} 19. Nxe5 {[%clk 0:02:00]}  fxe5 {[%clk 0:02:18]} 20. Bxg5 {[%clk 0:01:57]}  h6 {[%clk 0:02:04]} 21. Be3 {[%clk 0:01:55]}  Rd3 {[%clk 0:02:01]} 22. Bxb7 {[%clk 0:01:48]}  Qxb7 {[%clk 0:02:00]} 23. Qg2 {[%clk 0:01:41]}  Qxg2+ {[%clk 0:01:36]} 24. Kxg2 {[%clk 0:01:42]}  Rad8 {[%clk 0:01:36]} 25. Kf3 {[%clk 0:01:41]}  Bf6 {[%clk 0:01:32]} 26. Ke4 {[%clk 0:01:35]}  Kg7 {[%clk 0:01:29]} 27. Rh1 {[%clk 0:01:33]}  Bh4 {[%clk 0:01:28]} 28. Bd4 {[%clk 0:01:20]}  Rd2 {[%clk 0:01:15]} 29. Bxe5+ {[%clk 0:01:20]}  Bf6 {[%clk 0:01:10]} 30. Bf4 {[%clk 0:01:15]}  Re2+ {[%clk 0:01:03]} 31. Kf3 {[%clk 0:01:15]}  Rxb2 {[%clk 0:01:04]} 32. Rad1 {[%clk 0:01:14]}  Rxd1 {[%clk 0:01:02]} 33. Rxd1 {[%clk 0:01:15]}  Rxa2 {[%clk 0:01:02]} 34. Rd7 {[%clk 0:01:07]}  Ra3 {[%clk 0:00:58]} 35. Ke4 {[%clk 0:01:07]}  Rxc3 {[%clk 0:00:53]} 36. h4 {[%clk 0:01:04]}  Rc4+ {[%clk 0:00:48]} 37. Kf3 {[%clk 0:01:03]}  Bxh4 {[%clk 0:00:46]} 38. Rxa7 {[%clk 0:01:03]}  Bf6 {[%clk 0:00:42]} 39. Rb7 {[%clk 0:01:00]}  Rb4 {[%clk 0:00:42]} 40. Rc7 {[%clk 0:00:57]}  c4 {[%clk 0:00:40]} 41. Bd6 {[%clk 0:00:50]}  Rb3+ {[%clk 0:00:39]} 42. Ke4 {[%clk 0:00:50]}  Kf7 {[%clk 0:00:35]} 43. Bf4 {[%clk 0:00:50]}  Kg7 {[%clk 0:00:31]} 44. Bd6 {[%clk 0:00:50]}  Bg5 {[%clk 0:00:27]} 45. Be5+ {[%clk 0:00:42]}  Kf7 {[%clk 0:00:27]} 46. Rxc4 {[%clk 0:00:41]}  Re3+ {[%clk 0:00:24]} 47. Kd5 {[%clk 0:00:35]}  Re2 {[%clk 0:00:19]} 48. Rc6 {[%clk 0:00:33]}  Rg2 {[%clk 0:00:19]} 49. Rc4 {[%clk 0:00:28]}  b5 {[%clk 0:00:18]} 50. Rb4 {[%clk 0:00:24]}  Bf6 {[%clk 0:00:18]} 51. Bc7 {[%clk 0:00:12]}  Rg1 {[%clk 0:00:06]} 52. Bb6 {[%clk 0:00:11]}  Rg2 {[%clk 0:00:05]} 53. Be3 {[%clk 0:00:11]}  Kg7 {[%clk 0:00:05]} 54. Bf4 {[%clk 0:00:04]}  Bc3 {[%clk 0:00:04]} 55. Rb3 {[%clk 0:00:03]}  Bf6 {[%clk 0:00:04]} 56. Rb4 {[%clk 0:00:02]}  Kh7 {[%clk 0:00:04]} 57. Rxb5 {[%clk 0:00:02]}  Rxg4 {[%clk 0:00:04]} 58. Be3 {[%clk 0:00:02]}  Rg3 {[%clk 0:00:03]} 59. Bc5 {[%clk 0:00:02]}  Rf3 {[%clk 0:00:04]} 60. Ke6 {[%clk 0:00:02]}  Rf4 {[%clk 0:00:03]} 61. Bxe7 {[%clk 0:00:01]}  Bxe7 {[%clk 0:00:02]} 62. Kxe7 {[%clk 0:00:02]}  Kg7 {[%clk 0:00:02]} 63. f6+ {[%clk 0:00:02]}  Kg6 {[%clk 0:00:03]} 64. f7 {[%clk 0:00:02]}  Rxf7+ {[%clk 0:00:03]} 65. Ke6 {[%clk 0:00:03]}  Rf6+ {[%clk 0:00:03]} 66. Ke5 {[%clk 0:00:04]}  Rf5+ {[%clk 0:00:03]} 67. Ke4 {[%clk 0:00:05]}  Rxb5 {[%clk 0:00:04]} 68. Kf3 {[%clk 0:00:03]}  Rg5 {[%clk 0:00:04]} 0-1


[Site "https://www.chess.com"]

[Event "Titled Tuesday Blitz November 14 Late 2023"]
[White "Roberson, Peter T"]
[Black "Gurevich, Dmitry"]
[WhiteFideId "412384"]
[BlackFideId "2000407"]
[WhiteElo "2616"]
[BlackElo "2448"]
[Result "0-1"]
[Round "9"]
[TimeControl "180+1"]
[Date "2023.11.14"]
[WhiteClock "0:00:33"]
[BlackClock "0:00:33"]
[Board "37"]

1. Nf3 {[%clk 0:03:00]}  Nf6 {[%clk 0:02:58]} 2. e3 {[%clk 0:03:00]}  c5 {[%clk 0:02:56]} 3. d4 {[%clk 0:02:59]}  d5 {[%clk 0:02:55]} 4. Bd3 {[%clk 0:02:57]}  Nc6 {[%clk 0:02:53]} 5. O-O {[%clk 0:02:56]}  cxd4 {[%clk 0:02:51]} 6. exd4 {[%clk 0:02:56]}  Bg4 {[%clk 0:02:50]} 7. c3 {[%clk 0:02:56]}  e6 {[%clk 0:02:48]} 8. Bf4 {[%clk 0:02:56]}  Bd6 {[%clk 0:02:47]} 9. Bg3 {[%clk 0:02:56]}  Bxg3 {[%clk 0:02:45]} 10. hxg3 {[%clk 0:02:56]}  O-O {[%clk 0:02:45]} 11. Nbd2 {[%clk 0:02:57]}  Rb8 {[%clk 0:02:42]} 12. Qc2 {[%clk 0:02:55]}  Bxf3 {[%clk 0:02:40]} 13. gxf3 {[%clk 0:02:54]}  h6 {[%clk 0:02:39]} 14. Kg2 {[%clk 0:02:51]}  b5 {[%clk 0:02:38]} 15. Rh1 {[%clk 0:02:41]}  b4 {[%clk 0:02:37]} 16. g4 {[%clk 0:02:40]}  bxc3 {[%clk 0:02:37]} 17. bxc3 {[%clk 0:02:39]}  Re8 {[%clk 0:02:36]} 18. Nb3 {[%clk 0:02:32]}  Qd6 {[%clk 0:02:30]} 19. g5 {[%clk 0:02:14]}  hxg5 {[%clk 0:02:28]} 20. Rh3 {[%clk 0:02:15]}  Kf8 {[%clk 0:02:27]} 21. Rah1 {[%clk 0:02:14]}  Ke7 {[%clk 0:02:26]} 22. Re1 {[%clk 0:02:11]}  Qf4 {[%clk 0:02:20]} 23. Nc5 {[%clk 0:02:08]}  Nd7 {[%clk 0:02:03]} 24. Qa4 {[%clk 0:01:59]}  Nxc5 {[%clk 0:01:56]} 25. Qxc6 {[%clk 0:01:59]}  Nxd3 {[%clk 0:01:52]} 26. Re3 {[%clk 0:01:55]}  g4 {[%clk 0:01:27]} 27. Rg3 {[%clk 0:01:46]}  Nxf2 {[%clk 0:01:23]} 28. Qc5+ {[%clk 0:01:19]}  Kf6 {[%clk 0:01:18]} 29. fxg4 {[%clk 0:01:11]}  Ne4 {[%clk 0:01:13]} 30. Rgf3 {[%clk 0:01:07]}  Rb2+ {[%clk 0:01:05]} 31. Kg1 {[%clk 0:01:06]}  Nxc5 {[%clk 0:01:01]} 32. Rxf4+ {[%clk 0:00:51]}  Kg5 {[%clk 0:01:00]} 33. Rxf7 {[%clk 0:00:52]}  Ne4 {[%clk 0:00:57]} 34. Rxg7+ {[%clk 0:00:50]}  Kf4 {[%clk 0:00:55]} 35. Re1 {[%clk 0:00:51]}  Rh8 {[%clk 0:00:36]} 36. Rf1+ {[%clk 0:00:33]}  Kg3 {[%clk 0:00:33]} 0-1


[Site "https://www.chess.com"]

[Event "Titled Tuesday Blitz November 14 Late 2023"]
[White "OPQRC"]
[Black "Melikhov, Evgeny V."]
[BlackFideId "4122046"]
[WhiteElo "2602"]
[BlackElo "2421"]
[Result "0-1"]
[Round "9"]
[TimeControl "180+1"]
[Date "2023.11.14"]
[WhiteClock "0:00:26"]
[BlackClock "0:01:07"]
[Board "38"]

1. e4 {[%clk 0:03:00]}  e5 {[%clk 0:02:59]} 2. Nf3 {[%clk 0:03:00]}  Nc6 {[%clk 0:02:59]} 3. b3 {[%clk 0:02:56]}  d6 {[%clk 0:02:51]} 4. Bb5 {[%clk 0:02:55]}  Bd7 {[%clk 0:02:46]} 5. Bxc6 {[%clk 0:02:55]}  Bxc6 {[%clk 0:02:46]} 6. d3 {[%clk 0:02:55]}  Nf6 {[%clk 0:02:40]} 7. O-O {[%clk 0:02:54]}  Be7 {[%clk 0:02:40]} 8. c4 {[%clk 0:02:53]}  O-O {[%clk 0:02:39]} 9. Nc3 {[%clk 0:02:53]}  Ne8 {[%clk 0:02:29]} 10. Nd2 {[%clk 0:02:50]}  f5 {[%clk 0:02:28]} 11. exf5 {[%clk 0:02:47]}  Rxf5 {[%clk 0:02:26]} 12. Nde4 {[%clk 0:02:46]}  Nf6 {[%clk 0:02:20]} 13. Ng3 {[%clk 0:02:44]}  Qd7 {[%clk 0:02:10]} 14. Qe2 {[%clk 0:02:38]}  Rf8 {[%clk 0:02:07]} 15. Nxf5 {[%clk 0:02:30]}  Qxf5 {[%clk 0:02:06]} 16. h3 {[%clk 0:02:15]}  Qg6 {[%clk 0:01:59]} 17. f4 {[%clk 0:02:13]}  Nh5 {[%clk 0:01:53]} 18. Nd5 {[%clk 0:01:53]}  Bxd5 {[%clk 0:01:47]} 19. cxd5 {[%clk 0:01:53]}  Ng3 {[%clk 0:01:47]} 20. Qf3 {[%clk 0:01:33]}  Nxf1 {[%clk 0:01:47]} 21. Kxf1 {[%clk 0:01:33]}  exf4 {[%clk 0:01:42]} 22. Bb2 {[%clk 0:01:32]}  Bf6 {[%clk 0:01:41]} 23. Bxf6 {[%clk 0:01:31]}  Qxf6 {[%clk 0:01:41]} 24. Rc1 {[%clk 0:01:31]}  Qb2 {[%clk 0:01:35]} 25. Rxc7 {[%clk 0:01:28]}  Qb1+ {[%clk 0:01:20]} 26. Kf2 {[%clk 0:01:27]}  Re8 {[%clk 0:01:13]} 27. Qg4 {[%clk 0:00:26]}  Qe1+ {[%clk 0:01:09]} 28. Kf3 {[%clk 0:00:26]}  Qe3# {[%clk 0:01:07]} 0-1


[Site "https://www.chess.com"]

[Event "Titled Tuesday Blitz November 14 Late 2023"]
[White "Djordjevic, Dejan N"]
[Black "Lymar, Vladislav"]
[WhiteFideId "913316"]
[BlackFideId "14162180"]
[WhiteElo "2095"]
[BlackElo "2592"]
[Result "1-0"]
[Round "9"]
[TimeControl "180+1"]
[Date "2023.11.14"]
[WhiteClock "0:00:10"]
[BlackClock "0:00:00"]
[Board "40"]

1. e4 {[%clk 0:03:00]}  c5 {[%clk 0:02:58]} 2. Nc3 {[%clk 0:03:00]}  a6 {[%clk 0:02:58]} 3. g3 {[%clk 0:03:01]}  Nc6 {[%clk 0:02:57]} 4. Bg2 {[%clk 0:03:01]}  e6 {[%clk 0:02:58]} 5. Nge2 {[%clk 0:03:00]}  Nf6 {[%clk 0:02:58]} 6. O-O {[%clk 0:02:59]}  d5 {[%clk 0:02:57]} 7. exd5 {[%clk 0:02:59]}  exd5 {[%clk 0:02:54]} 8. d4 {[%clk 0:02:59]}  Be7 {[%clk 0:02:53]} 9. dxc5 {[%clk 0:02:55]}  d4 {[%clk 0:02:50]} 10. Na4 {[%clk 0:02:53]}  O-O {[%clk 0:02:48]} 11. b3 {[%clk 0:02:51]}  Bg4 {[%clk 0:02:41]} 12. h3 {[%clk 0:02:50]}  Bh5 {[%clk 0:02:39]} 13. Bb2 {[%clk 0:02:47]}  Nd5 {[%clk 0:02:18]} 14. g4 {[%clk 0:02:42]}  Bg6 {[%clk 0:02:19]} 15. Nxd4 {[%clk 0:02:41]}  Bf6 {[%clk 0:01:59]} 16. Nxc6 {[%clk 0:02:36]}  bxc6 {[%clk 0:01:59]} 17. Bxf6 {[%clk 0:02:23]}  Qxf6 {[%clk 0:01:59]} 18. Nb6 {[%clk 0:02:15]}  Nc3 {[%clk 0:01:45]} 19. Qd6 {[%clk 0:02:05]}  Qxd6 {[%clk 0:01:32]} 20. cxd6 {[%clk 0:02:05]}  Rad8 {[%clk 0:01:33]} 21. d7 {[%clk 0:02:02]}  Rb8 {[%clk 0:01:29]} 22. Nc4 {[%clk 0:01:54]}  c5 {[%clk 0:01:17]} 23. Rfe1 {[%clk 0:01:43]}  Rfd8 {[%clk 0:01:16]} 24. Bc6 {[%clk 0:01:39]}  f6 {[%clk 0:01:12]} 25. Re3 {[%clk 0:01:33]}  Nb5 {[%clk 0:01:11]} 26. c3 {[%clk 0:01:29]}  Nc7 {[%clk 0:01:04]} 27. Rae1 {[%clk 0:01:05]}  Bf7 {[%clk 0:01:02]} 28. Na5 {[%clk 0:01:00]}  Rb6 {[%clk 0:00:54]} 29. Ba4 {[%clk 0:00:59]}  h6 {[%clk 0:00:43]} 30. Re7 {[%clk 0:00:45]}  Re6 {[%clk 0:00:30]} 31. R1xe6 {[%clk 0:00:39]}  Bxe6 {[%clk 0:00:29]} 32. Nb7 {[%clk 0:00:31]}  Kf8 {[%clk 0:00:20]} 33. Re8+ {[%clk 0:00:17]}  Rxe8 {[%clk 0:00:11]} 34. dxe8=Q+ {[%clk 0:00:17]}  Nxe8 {[%clk 0:00:12]} 35. Bxe8 {[%clk 0:00:16]}  Kxe8 {[%clk 0:00:12]} 36. Nxc5 {[%clk 0:00:17]}  Bc8 {[%clk 0:00:13]} 37. f4 {[%clk 0:00:16]}  Ke7 {[%clk 0:00:14]} 38. c4 {[%clk 0:00:16]}  Kd6 {[%clk 0:00:14]} 39. Nd3 {[%clk 0:00:16]}  Bb7 {[%clk 0:00:13]} 40. Kf2 {[%clk 0:00:16]}  Be4 {[%clk 0:00:14]} 41. Ke3 {[%clk 0:00:14]}  Bg2 {[%clk 0:00:13]} 42. h4 {[%clk 0:00:13]}  Bh3 {[%clk 0:00:13]} 43. g5 {[%clk 0:00:13]}  Bf5 {[%clk 0:00:10]} 44. Kd4 {[%clk 0:00:13]}  Bg6 {[%clk 0:00:08]} 45. b4 {[%clk 0:00:13]}  Kc6 {[%clk 0:00:08]} 46. a4 {[%clk 0:00:13]}  Bf5 {[%clk 0:00:05]} 47. a5 {[%clk 0:00:12]}  Bg6 {[%clk 0:00:05]} 48. Nc5 {[%clk 0:00:12]}  fxg5 {[%clk 0:00:03]} 49. fxg5 {[%clk 0:00:12]}  Bf7 {[%clk 0:00:02]} 50. Nxa6 {[%clk 0:00:11]}  hxg5 {[%clk 0:00:02]} 51. hxg5 {[%clk 0:00:11]}  Kd6 {[%clk 0:00:03]} 52. b5 {[%clk 0:00:11]}  Be6 {[%clk 0:00:02]} 53. Nc5 {[%clk 0:00:10]}  Bc8 {[%clk 0:00:02]} 54. a6 {[%clk 0:00:10]}  Kc7 {[%clk 0:00:02]} 55. Na4 {[%clk 0:00:10]}  Kb8 {[%clk 0:00:02]} 56. c5 {[%clk 0:00:10]}  Bd7 {[%clk 0:00:02]} 57. c6 {[%clk 0:00:10]}  Bg4 {[%clk 0:00:02]} 58. Kc5 {[%clk 0:00:10]}  Bf3 {[%clk 0:00:02]} 59. b6 {[%clk 0:00:10]}  g6 {[%clk 0:00:02]} 60. Nc3 {[%clk 0:00:10]}  Ka8 {[%clk 0:00:00]} 61. Nb5 {[%clk 0:00:10]} 1-0


[Site "https://www.chess.com"]

[Event "Titled Tuesday Blitz November 14 Late 2023"]
[White "Maltsevskaya, Aleksandra"]
[Black "Kubicka, Anna"]
[WhiteFideId "24174041"]
[BlackFideId "1152254"]
[WhiteElo "2641"]
[BlackElo "2479"]
[Result "1/2-1/2"]
[Round "9"]
[TimeControl "180+1"]
[Date "2023.11.14"]
[WhiteClock "0:00:06"]
[BlackClock "0:00:10"]
[Board "43"]

1. e4 {[%clk 0:02:59]}  c5 {[%clk 0:02:51]} 2. Nf3 {[%clk 0:02:57]}  d6 {[%clk 0:02:51]} 3. d4 {[%clk 0:02:58]}  cxd4 {[%clk 0:02:52]} 4. Nxd4 {[%clk 0:02:58]}  Nf6 {[%clk 0:02:52]} 5. Nc3 {[%clk 0:02:59]}  a6 {[%clk 0:02:52]} 6. g3 {[%clk 0:02:57]}  e5 {[%clk 0:02:50]} 7. Nb3 {[%clk 0:02:57]}  Be7 {[%clk 0:02:49]} 8. Bg2 {[%clk 0:02:57]}  O-O {[%clk 0:02:49]} 9. O-O {[%clk 0:02:58]}  b5 {[%clk 0:02:49]} 10. a4 {[%clk 0:02:57]}  b4 {[%clk 0:02:47]} 11. Nd5 {[%clk 0:02:57]}  Nxd5 {[%clk 0:02:34]} 12. exd5 {[%clk 0:02:58]}  a5 {[%clk 0:02:26]} 13. Bd2 {[%clk 0:02:57]}  Na6 {[%clk 0:01:50]} 14. c3 {[%clk 0:02:55]}  Bd7 {[%clk 0:01:42]} 15. Re1 {[%clk 0:02:49]}  Qc7 {[%clk 0:01:22]} 16. cxb4 {[%clk 0:02:18]}  Nxb4 {[%clk 0:01:21]} 17. Bxb4 {[%clk 0:02:11]}  axb4 {[%clk 0:01:21]} 18. a5 {[%clk 0:02:12]}  Bb5 {[%clk 0:01:16]} 19. Re4 {[%clk 0:02:09]}  Rfb8 {[%clk 0:01:05]} 20. Rxb4 {[%clk 0:02:03]}  Bc4 {[%clk 0:01:02]} 21. Rb6 {[%clk 0:00:46]}  Rxb6 {[%clk 0:00:44]} 22. axb6 {[%clk 0:00:44]}  Rxa1 {[%clk 0:00:38]} 23. Qxa1 {[%clk 0:00:16]}  Qxb6 {[%clk 0:00:38]} 24. Na5 {[%clk 0:00:16]}  Bd3 {[%clk 0:00:23]} 25. Nc6 {[%clk 0:00:16]}  Bf8 {[%clk 0:00:20]} 26. b4 {[%clk 0:00:15]}  g6 {[%clk 0:00:18]} 27. Bf1 {[%clk 0:00:12]}  Qb5 {[%clk 0:00:15]} 28. Bxd3 {[%clk 0:00:09]}  Qxd3 {[%clk 0:00:16]} 29. Qa2 {[%clk 0:00:09]}  e4 {[%clk 0:00:09]} 30. Na5 {[%clk 0:00:05]}  Qd1+ {[%clk 0:00:08]} 31. Kg2 {[%clk 0:00:05]}  Qf3+ {[%clk 0:00:09]} 32. Kg1 {[%clk 0:00:06]}  Qd1+ {[%clk 0:00:09]} 33. Kg2 {[%clk 0:00:06]}  Qf3+ {[%clk 0:00:09]} 34. Kg1 {[%clk 0:00:06]}  Qd1+ {[%clk 0:00:10]} 1/2-1/2


[Site "https://www.chess.com"]

[Event "Titled Tuesday Blitz November 14 Late 2023"]
[White "PoXerStar"]
[Black "Sakun, Volodymyr"]
[BlackFideId "14114062"]
[WhiteElo "2449"]
[BlackElo "2613"]
[Result "0-1"]
[Round "9"]
[TimeControl "180+1"]
[Date "2023.11.14"]
[WhiteClock "0:01:11"]
[BlackClock "0:02:06"]
[Board "45"]

1. d4 {[%clk 0:02:58]}  Nf6 {[%clk 0:02:59]} 2. c4 {[%clk 0:02:58]}  e6 {[%clk 0:02:59]} 3. Nf3 {[%clk 0:02:58]}  d5 {[%clk 0:02:59]} 4. g3 {[%clk 0:02:57]}  Be7 {[%clk 0:02:59]} 5. Bg2 {[%clk 0:02:58]}  O-O {[%clk 0:02:59]} 6. O-O {[%clk 0:02:58]}  c6 {[%clk 0:03:00]} 7. Qc2 {[%clk 0:02:58]}  b6 {[%clk 0:02:59]} 8. Nbd2 {[%clk 0:02:59]}  Ba6 {[%clk 0:02:46]} 9. e4 {[%clk 0:02:54]}  dxe4 {[%clk 0:02:40]} 10. Ng5 {[%clk 0:02:25]}  Qxd4 {[%clk 0:02:30]} 11. Ndxe4 {[%clk 0:02:20]}  Nxe4 {[%clk 0:02:22]} 12. Bxe4 {[%clk 0:01:11]}  Qxc4 {[%clk 0:02:06]} 0-1


[Site "https://www.chess.com"]

[Event "Titled Tuesday Blitz November 14 Late 2023"]
[White "Golubev, Mikhail"]
[Black "Kubatko, Ivan"]
[WhiteFideId "14100983"]
[BlackFideId "24111473"]
[WhiteElo "2609"]
[BlackElo "2427"]
[Result "1-0"]
[Round "9"]
[TimeControl "180+1"]
[Date "2023.11.14"]
[WhiteClock "0:00:23"]
[BlackClock "0:00:01"]
[Board "46"]

1. e4 {[%clk 0:03:00]}  d5 {[%clk 0:03:00]} 2. exd5 {[%clk 0:02:59]}  Qxd5 {[%clk 0:03:00]} 3. Nc3 {[%clk 0:02:54]}  Qa5 {[%clk 0:03:00]} 4. g3 {[%clk 0:02:54]}  Nf6 {[%clk 0:02:58]} 5. Bg2 {[%clk 0:02:54]}  h5 {[%clk 0:02:58]} 6. Nf3 {[%clk 0:02:52]}  Nc6 {[%clk 0:02:56]} 7. d3 {[%clk 0:02:40]}  h4 {[%clk 0:02:50]} 8. Nxh4 {[%clk 0:02:37]}  Bg4 {[%clk 0:02:49]} 9. Bf3 {[%clk 0:02:22]}  Bxf3 {[%clk 0:02:03]} 10. Nxf3 {[%clk 0:02:16]}  e6 {[%clk 0:01:40]} 11. Qe2 {[%clk 0:02:15]}  O-O-O {[%clk 0:01:38]} 12. Bd2 {[%clk 0:02:11]}  Nb4 {[%clk 0:01:22]} 13. Rc1 {[%clk 0:01:57]}  Nxa2 {[%clk 0:00:39]} 14. Ra1 {[%clk 0:01:46]}  Nxc3 {[%clk 0:00:38]} 15. Rxa5 {[%clk 0:01:46]}  Nxe2 {[%clk 0:00:38]} 16. Kxe2 {[%clk 0:01:45]}  Bd6 {[%clk 0:00:24]} 17. Rxa7 {[%clk 0:01:40]}  b6 {[%clk 0:00:17]} 18. Ra8+ {[%clk 0:01:37]}  Kd7 {[%clk 0:00:17]} 19. Rxd8+ {[%clk 0:01:37]}  Rxd8 {[%clk 0:00:18]} 20. Ra1 {[%clk 0:01:35]}  e5 {[%clk 0:00:16]} 21. Ng5 {[%clk 0:01:31]}  Ke7 {[%clk 0:00:14]} 22. h4 {[%clk 0:01:30]}  Nd7 {[%clk 0:00:11]} 23. Ne4 {[%clk 0:01:27]}  f6 {[%clk 0:00:10]} 24. g4 {[%clk 0:01:19]}  Ke6 {[%clk 0:00:10]} 25. h5 {[%clk 0:01:16]}  Nf8 {[%clk 0:00:08]} 26. Ng3 {[%clk 0:01:13]}  Nd7 {[%clk 0:00:04]} 27. Nf5 {[%clk 0:01:11]}  Bf8 {[%clk 0:00:05]} 28. Ra7 {[%clk 0:01:08]}  Rc8 {[%clk 0:00:05]} 29. b4 {[%clk 0:01:03]}  Kf7 {[%clk 0:00:03]} 30. c3 {[%clk 0:00:50]}  Ke6 {[%clk 0:00:03]} 31. Kf3 {[%clk 0:00:47]}  Kf7 {[%clk 0:00:04]} 32. Ke4 {[%clk 0:00:46]}  Ke6 {[%clk 0:00:04]} 33. f4 {[%clk 0:00:44]}  Kf7 {[%clk 0:00:04]} 34. fxe5 {[%clk 0:00:42]}  Nxe5 {[%clk 0:00:05]} 35. Bf4 {[%clk 0:00:41]}  Nxg4 {[%clk 0:00:05]} 36. Rxc7+ {[%clk 0:00:38]}  Rxc7 {[%clk 0:00:05]} 37. Bxc7 {[%clk 0:00:38]}  b5 {[%clk 0:00:04]} 38. c4 {[%clk 0:00:38]}  Bxb4 {[%clk 0:00:03]} 39. cxb5 {[%clk 0:00:37]}  Nf2+ {[%clk 0:00:02]} 40. Kd4 {[%clk 0:00:33]}  Ng4 {[%clk 0:00:01]} 41. Kd5 {[%clk 0:00:24]}  Ke8 {[%clk 0:00:01]} 42. Kc6 {[%clk 0:00:24]}  Kf7 {[%clk 0:00:01]} 43. b6 {[%clk 0:00:24]}  Ne5+ {[%clk 0:00:01]} 44. Bxe5 {[%clk 0:00:23]} 1-0


[Site "https://www.chess.com"]

[Event "Titled Tuesday Blitz November 14 Late 2023"]
[White "Mazzilli, Piero"]
[Black "Karamsetty, Jeevan"]
[WhiteFideId "807087"]
[BlackFideId "2025337"]
[WhiteElo "2377"]
[BlackElo "2548"]
[Result "1-0"]
[Round "9"]
[TimeControl "180+1"]
[Date "2023.11.14"]
[WhiteClock "0:00:11"]
[BlackClock "0:00:03"]
[Board "50"]

1. e4 {[%clk 0:03:00]}  e5 {[%clk 0:02:55]} 2. Nf3 {[%clk 0:03:00]}  d6 {[%clk 0:02:53]} 3. d4 {[%clk 0:02:59]}  exd4 {[%clk 0:02:53]} 4. Nxd4 {[%clk 0:02:58]}  Nf6 {[%clk 0:02:54]} 5. Nc3 {[%clk 0:02:58]}  Be7 {[%clk 0:02:53]} 6. Bf4 {[%clk 0:02:59]}  O-O {[%clk 0:02:53]} 7. Qd2 {[%clk 0:02:57]}  Nc6 {[%clk 0:02:52]} 8. Nxc6 {[%clk 0:02:55]}  bxc6 {[%clk 0:02:53]} 9. Bd3 {[%clk 0:02:55]}  Rb8 {[%clk 0:02:50]} 10. b3 {[%clk 0:02:52]}  d5 {[%clk 0:02:47]} 11. exd5 {[%clk 0:02:45]}  cxd5 {[%clk 0:02:44]} 12. O-O {[%clk 0:02:36]}  Bb4 {[%clk 0:02:42]} 13. a3 {[%clk 0:02:35]}  Ba5 {[%clk 0:02:41]} 14. b4 {[%clk 0:02:34]}  Bb6 {[%clk 0:02:41]} 15. Na4 {[%clk 0:02:27]}  Be6 {[%clk 0:02:22]} 16. Nxb6 {[%clk 0:02:23]}  Rxb6 {[%clk 0:02:18]} 17. Be5 {[%clk 0:02:19]}  Ne8 {[%clk 0:01:35]} 18. Bd4 {[%clk 0:02:04]}  Rb7 {[%clk 0:01:29]} 19. f4 {[%clk 0:01:52]}  f5 {[%clk 0:01:26]} 20. Rfe1 {[%clk 0:01:45]}  Qd6 {[%clk 0:01:13]} 21. Bc5 {[%clk 0:01:41]}  Qd7 {[%clk 0:01:09]} 22. Bxf8 {[%clk 0:01:40]}  Kxf8 {[%clk 0:01:10]} 23. Qe3 {[%clk 0:01:20]}  Rb6 {[%clk 0:01:05]} 24. Rad1 {[%clk 0:01:06]}  Nf6 {[%clk 0:01:04]} 25. c4 {[%clk 0:01:00]}  d4 {[%clk 0:00:57]} 26. Qf3 {[%clk 0:00:52]}  Ra6 {[%clk 0:00:48]} 27. Qe2 {[%clk 0:00:27]}  Kf7 {[%clk 0:00:43]} 28. Qb2 {[%clk 0:00:21]}  Rb6 {[%clk 0:00:36]} 29. c5 {[%clk 0:00:20]}  Rb8 {[%clk 0:00:35]} 30. Qc2 {[%clk 0:00:19]}  Ng4 {[%clk 0:00:31]} 31. Bc4 {[%clk 0:00:14]}  Re8 {[%clk 0:00:29]} 32. Qxf5+ {[%clk 0:00:13]}  Nf6 {[%clk 0:00:17]} 33. Rxe6 {[%clk 0:00:12]}  Kf8 {[%clk 0:00:03]} 34. Rxf6+ {[%clk 0:00:11]} 1-0


[Site "https://www.chess.com"]

[Event "Titled Tuesday Blitz November 14 Late 2023"]
[White "Vafin, Ayrat"]
[Black "Avalos Parra, Joao"]
[WhiteFideId "4146530"]
[BlackFideId "3402541"]
[WhiteElo "2539"]
[BlackElo "2361"]
[Result "1-0"]
[Round "9"]
[TimeControl "180+1"]
[Date "2023.11.14"]
[WhiteClock "0:00:20"]
[BlackClock "0:00:23"]
[Board "51"]

1. Nf3 {[%clk 0:02:56]}  d5 {[%clk 0:02:58]} 2. g3 {[%clk 0:02:57]}  Nf6 {[%clk 0:02:58]} 3. Bg2 {[%clk 0:02:57]}  e6 {[%clk 0:02:59]} 4. O-O {[%clk 0:02:57]}  Be7 {[%clk 0:02:59]} 5. c4 {[%clk 0:02:57]}  d4 {[%clk 0:02:59]} 6. e3 {[%clk 0:02:57]}  c5 {[%clk 0:02:59]} 7. exd4 {[%clk 0:02:57]}  cxd4 {[%clk 0:03:00]} 8. Re1 {[%clk 0:02:57]}  Nc6 {[%clk 0:03:01]} 9. Ne5 {[%clk 0:02:57]}  Nxe5 {[%clk 0:03:00]} 10. Rxe5 {[%clk 0:02:58]}  O-O {[%clk 0:03:01]} 11. d3 {[%clk 0:02:58]}  h6 {[%clk 0:03:00]} 12. a3 {[%clk 0:02:56]}  a5 {[%clk 0:02:59]} 13. Re1 {[%clk 0:02:55]}  Bd6 {[%clk 0:02:55]} 14. Nd2 {[%clk 0:02:41]}  Qc7 {[%clk 0:02:40]} 15. Rb1 {[%clk 0:02:38]}  a4 {[%clk 0:02:33]} 16. Qc2 {[%clk 0:02:31]}  Nd7 {[%clk 0:02:31]} 17. Ne4 {[%clk 0:02:23]}  Be7 {[%clk 0:02:15]} 18. b4 {[%clk 0:02:07]}  axb3 {[%clk 0:02:11]} 19. Rxb3 {[%clk 0:02:07]}  e5 {[%clk 0:01:54]} 20. Rb1 {[%clk 0:01:12]}  f5 {[%clk 0:01:48]} 21. Nd2 {[%clk 0:01:12]}  Nc5 {[%clk 0:01:49]} 22. Bd5+ {[%clk 0:01:11]}  Kh8 {[%clk 0:01:48]} 23. Nf3 {[%clk 0:01:11]}  Bd7 {[%clk 0:01:42]} 24. Nxe5 {[%clk 0:01:07]}  Ba4 {[%clk 0:01:40]} 25. Ng6+ {[%clk 0:01:01]}  Kh7 {[%clk 0:01:39]} 26. Nxf8+ {[%clk 0:01:02]}  Rxf8 {[%clk 0:01:38]} 27. Qe2 {[%clk 0:01:02]}  Bd6 {[%clk 0:01:23]} 28. Bb2 {[%clk 0:00:30]}  Re8 {[%clk 0:01:19]} 29. Qxe8 {[%clk 0:00:23]}  Bxe8 {[%clk 0:01:20]} 30. Rxe8 {[%clk 0:00:23]}  Nxd3 {[%clk 0:01:12]} 31. Bxd4 {[%clk 0:00:22]}  Bc5 {[%clk 0:00:44]} 32. Rxb7 {[%clk 0:00:20]}  Qxb7 {[%clk 0:00:33]} 33. Bxb7 {[%clk 0:00:21]}  Bxd4 {[%clk 0:00:33]} 34. Rd8 {[%clk 0:00:21]}  Bxf2+ {[%clk 0:00:23]} 35. Kg2 {[%clk 0:00:20]} 1-0


[Site "https://www.chess.com"]